fUST/lending_fUST_20250808
["ID","MTS","AMOUNT","RATE_DAILY","PERIOD"]
[377879522,1754592642429,-460.0,0.00022465,2]
[377879523,1754592642438,-910.64,0.00022465,2]
[377879524,1754592642447,-490.03716557,0.00022465,2]
[377879525,1754592642456,-460.0,0.00022465,2]
[377879526,1754592642465,-732.08,0.00022465,2]
[377879527,1754592642475,-973.45,0.00022465,2]
[377879528,1754592642486,-2197.76,0.00022465,2]
[377879529,1754592642495,-460.0,0.00022465,2]
[377879530,1754592642504,-1000.0,0.00022521,2]
[377879531,1754592642514,-1000.0,0.00022521,2]
[377879532,1754592642524,-151.0,0.00022527,2]
[377879533,1754592642534,-151.0,0.00022527,2]
[377879534,1754592642545,-151.0,0.00022527,2]
[377879535,1754592642554,-151.0,0.00022527,2]
[377879536,1754592642564,-151.0,0.00022527,2]
[377879537,1754592642573,-151.0,0.00022527,2]
[377879538,1754592642582,-151.0,0.00022527,2]
[377879539,1754592642592,-151.0,0.00022527,2]
[377879540,1754592642601,-151.0,0.00022527,2]
[377879541,1754592642610,-151.0,0.00022527,2]
[377879542,1754592642620,-151.0,0.00022527,2]
[377879543,1754592642629,-151.0,0.00022527,2]
[377879544,1754592642638,-300.0,0.00022527,2]
[377879545,1754592642647,-300.0,0.00022527,2]
[377879546,1754592642657,-300.0,0.00022527,2]
[377879547,1754592642667,-300.0,0.00022527,2]
[377879548,1754592642676,-300.0,0.00022527,2]
[377879549,1754592642685,-300.0,0.00022527,2]
[377879550,1754592642694,-300.0,0.00022527,2]
[377879551,1754592642703,-300.0,0.00022527,2]
[377879552,1754592642712,-300.0,0.00022527,2]
[377879553,1754592642722,-300.0,0.00022527,2]
[377879554,1754592642732,-300.0,0.00022527,2]
[377879555,1754592642741,-500.0,0.00022546,2]
[377879556,1754592642750,-432.26826119,0.00022546,2]
[377879557,1754592642760,-500.0,0.00022573,2]
[377879558,1754592642769,-1477.09867929,0.00022639,2]
[377879559,1754592642778,-507.34182814,0.00022736,2]
[377879560,1754592642787,-525.30277644,0.00022736,2]
[377879561,1754592642797,-507.34182814,0.00022736,2]
[377879562,1754592642806,-507.34182814,0.00022736,2]
[377879563,1754592642816,-507.34182814,0.00022736,2]
[377879564,1754592642825,-507.34182814,0.00022736,2]
[377879565,1754592642835,-507.34182814,0.00022736,2]
[377879566,1754592642844,-507.34182814,0.00022736,2]
[377879567,1754592642853,-507.34182814,0.00022736,2]
[377879568,1754592642863,-507.34182814,0.00022736,2]
[377879569,1754592642872,-507.34182814,0.00022736,2]
[377879570,1754592642881,-507.34182814,0.00022736,2]
[377879572,1754592642890,-507.34182814,0.00022736,2]
[377879573,1754592642900,-507.34182814,0.00022736,2]
[377879575,1754592642909,-507.34182814,0.00022736,2]
[377879576,1754592642918,-507.34182814,0.00022736,2]
[377879577,1754592642927,-507.34182814,0.00022736,2]
[377879578,1754592642937,-507.34182814,0.00022736,2]
[377879579,1754592642946,-507.34182814,0.00022736,2]
[377879580,1754592642955,-507.34182814,0.00022736,2]
[377879581,1754592642965,-460.0,0.00022739,2]
[377879582,1754592642974,-460.0,0.00022739,2]
[377879583,1754592642984,-460.0,0.00022739,2]
[377879584,1754592642994,-903.9,0.00022739,2]
[377879585,1754592643004,-460.0,0.00022739,2]
[377879586,1754592643013,-903.73,0.00022739,2]
[377879587,1754592643023,-460.0,0.00022739,2]
[377879588,1754592643033,-725.42,0.00022739,2]
[377879589,1754592643043,-460.0,0.00022739,2]
[377879590,1754592643053,-792.52,0.00022739,2]
[377879591,1754592643067,-460.0,0.00022739,2]
[377879592,1754592643077,-581.4,0.00022739,2]
[377879593,1754592643086,-460.0,0.00022739,2]
[377879594,1754592643095,-460.0,0.00022739,2]
[377879595,1754592643104,-570.6,0.00022739,2]
[377879596,1754592643114,-460.0,0.00022739,2]
[377879597,1754592643123,-460.0,0.00022739,2]
[377879598,1754592643133,-460.0,0.00022739,2]
[377879599,1754592643143,-460.0,0.00022739,2]
[377879600,1754592643152,-1834.74,0.00022739,2]
[377879601,1754592643161,-825.21,0.00022739,2]
[377879602,1754592643170,-619.62,0.00022739,2]
[377879603,1754592643180,-476.77,0.00022739,2]
[377879604,1754592643189,-566.7,0.00022739,2]
[377879606,1754592643199,-1121.19,0.00022739,2]
[377879607,1754592643208,-460.0,0.00022739,2]
[377879608,1754592643218,-1388.37,0.00022739,2]
[377879609,1754592643227,-460.0,0.00022739,2]
[377879610,1754592643236,-460.0,0.00022739,2]
[377879611,1754592643246,-460.0,0.00022739,2]
[377879612,1754592643255,-460.0,0.00022739,2]
[377879613,1754592643265,-460.0,0.00022739,2]
[377879614,1754592643274,-460.0,0.00022739,2]
[377879615,1754592643284,-460.0,0.00022739,2]
[377879616,1754592643294,-460.0,0.00022739,2]
[377879617,1754592643304,-460.0,0.00022739,2]
[377879618,1754592643313,-1509.44,0.00022739,2]
[377879619,1754592643325,-1012.9,0.00022739,2]
[377879620,1754592643336,-460.0,0.00022739,2]
[377879621,1754592643345,-807.23,0.00022739,2]
[377879622,1754592643356,-585.04,0.00022739,2]
[377879623,1754592643365,-1094.48,0.00022739,2]
[377879624,1754592643375,-460.0,0.00022739,2]
[377879625,1754592643384,-1395.48,0.00022739,2]
[377879626,1754592643393,-460.0,0.00022739,2]
[377879627,1754592643404,-498.01,0.00022739,2]
[377879628,1754592643413,-625.27,0.00022739,2]
[377879629,1754592643423,-460.0,0.00022739,2]
[377879630,1754592643432,-460.0,0.00022739,2]
[377879632,1754592643442,-1935.5,0.00022739,2]
[377879634,1754592643452,-1710.3,0.00022739,2]
[377879635,1754592643461,-460.0,0.00022739,2]
[377879636,1754592643470,-460.0,0.00022739,2]
[377879637,1754592643479,-502.64,0.00022739,2]
[377879638,1754592643489,-460.0,0.00022739,2]
[377879639,1754592643498,-5447.31,0.00022739,2]
[377879640,1754592643508,-460.0,0.00022739,2]
[377879641,1754592643517,-460.0,0.00022739,2]
[377879642,1754592643527,-481.05,0.00022739,2]
[377879643,1754592643536,-460.0,0.00022739,2]
[377879644,1754592643547,-2672.21,0.00022739,2]
[377879645,1754592643557,-460.0,0.00022739,2]
[377879646,1754592643566,-1766.08,0.00022739,2]
[377879647,1754592643576,-626.17,0.00022739,2]
[377879648,1754592643586,-460.0,0.00022739,2]
[377879649,1754592643596,-645.61,0.00022739,2]
[377879650,1754592643606,-460.0,0.00022739,2]
[377879651,1754592643616,-397.98280604,0.00022739,2]
[377879652,1754592643626,-1285.94,0.00022739,2]
[377879653,1754592643637,-460.0,0.00022739,2]
[377879654,1754592643648,-460.0,0.00022739,2]
[377879655,1754592643659,-460.0,0.00022739,2]
[377879656,1754592643669,-460.0,0.00022739,2]
[377879657,1754592643678,-460.0,0.00022739,2]
[377879658,1754592643688,-630.52,0.00022739,2]
[377879659,1754592643698,-578.98,0.00022739,2]
[377879660,1754592643709,-460.0,0.00022739,2]
[377879661,1754592643721,-1193.89,0.00022739,2]
[377879662,1754592643730,-544.89,0.00022739,2]
[377879663,1754592643740,-518.68539951,0.00022739,2]
[377879664,1754592643749,-910.64,0.00022739,2]
[377879665,1754592643759,-460.0,0.00022739,2]
[377879666,1754592643768,-732.08,0.00022739,2]
[377879667,1754592643778,-973.45,0.00022739,2]
[377879668,1754592643787,-236.5627385,0.00022739,2]
[377879669,1754592643926,-2197.76,0.00022739,2]
[377879670,1754592643936,-500.0,0.00022773,2]
[377879671,1754592643946,-500.0,0.00022773,2]
[377879672,1754592643956,-500.0,0.00022773,2]
[377879673,1754592643966,-500.0,0.00022773,2]
[377879674,1754592643975,-312.16666667,0.00022847,2]
[377879675,1754592643985,-216.52217562,0.00022847,2]
[377879676,1754592643996,-12660.90439413,0.00022847,2]
[377879677,1754592644006,-160.0,0.00022847,2]
[377879678,1754592644015,-160.0,0.00022847,2]
[377879679,1754592644025,-160.0,0.00022847,2]
[377879680,1754592644035,-160.0,0.00022847,2]
[377879681,1754592644044,-215.31718835,0.00022847,2]
[377879682,1754592644054,-527.57568145,0.00022847,2]
[377879683,1754592644066,-231.83071243,0.00022847,2]
[377879684,1754592644076,-842.63596909,0.00022847,2]
[377879685,1754592644085,-461.3695942,0.00022847,2]
[377879686,1754592644095,-160.0,0.00022847,2]
[377879687,1754592644106,-160.0,0.00022848,2]
[377879688,1754592644115,-160.0,0.00022848,2]
[377879689,1754592644125,-183.54014622,0.00022913,2]
[377879690,1754592644135,-160.0,0.00023,2]
[377879691,1754592644146,-200.0,0.0002301,15]
[377879692,1754592644155,-460.0,0.00023013,2]
[377879693,1754592644165,-460.0,0.00023013,2]
[377879694,1754592644174,-460.0,0.00023013,2]
[377879695,1754592644184,-903.9,0.00023013,2]
[377879696,1754592644193,-460.0,0.00023013,2]
[377879697,1754592644203,-903.73,0.00023013,2]
[377879698,1754592644213,-460.0,0.00023013,2]
[377879699,1754592644223,-725.42,0.00023013,2]
[377879700,1754592644233,-460.0,0.00023013,2]
[377879701,1754592644243,-792.52,0.00023013,2]
[377879702,1754592644252,-460.0,0.00023013,2]
[377879703,1754592644261,-581.4,0.00023013,2]
[377879704,1754592644270,-460.0,0.00023013,2]
[377879705,1754592644279,-460.0,0.00023013,2]
[377879706,1754592644288,-570.6,0.00023013,2]
[377879707,1754592644297,-460.0,0.00023013,2]
[377879708,1754592644307,-460.0,0.00023013,2]
[377879709,1754592644316,-460.0,0.00023013,2]
[377879710,1754592644326,-460.0,0.00023013,2]
[377879711,1754592644336,-1834.74,0.00023013,2]
[377879712,1754592644347,-825.21,0.00023013,2]
[377879713,1754592644357,-619.62,0.00023013,2]
[377879714,1754592644367,-476.77,0.00023013,2]
[377879715,1754592644377,-1121.19,0.00023013,2]
[377879716,1754592644387,-460.0,0.00023013,2]
[377879717,1754592644397,-460.0,0.00023013,2]
[377879718,1754592644407,-1388.37,0.00023013,2]
[377879719,1754592644417,-460.0,0.00023013,2]
[377879720,1754592644427,-460.0,0.00023013,2]
[377879721,1754592644437,-460.0,0.00023013,2]
[377879722,1754592644447,-460.0,0.00023013,2]
[377879723,1754592644456,-460.0,0.00023013,2]
[377879724,1754592644466,-460.0,0.00023013,2]
[377879725,1754592644475,-460.0,0.00023013,2]
[377879726,1754592644487,-460.0,0.00023013,2]
[377879727,1754592644497,-1509.44,0.00023013,2]
[377879728,1754592644507,-1012.9,0.00023013,2]
[377879729,1754592644517,-460.0,0.00023013,2]
[377879730,1754592644527,-807.23,0.00023013,2]
[377879731,1754592644536,-585.04,0.00023013,2]
[377879732,1754592644546,-1094.48,0.00023013,2]
[377879733,1754592644555,-460.0,0.00023013,2]
[377879734,1754592644565,-460.0,0.00023013,2]
[377879735,1754592644575,-1395.48,0.00023013,2]
[377879736,1754592644584,-498.01,0.00023013,2]
[377879737,1754592644594,-625.27,0.00023013,2]
[377879738,1754592644604,-460.0,0.00023013,2]
[377879739,1754592644614,-460.0,0.00023013,2]
[377879740,1754592644623,-1935.5,0.00023013,2]
[377879741,1754592644633,-1710.3,0.00023013,2]
[377879742,1754592644643,-460.0,0.00023013,2]
[377879743,1754592644652,-460.0,0.00023013,2]
[377879744,1754592644662,-502.64,0.00023013,2]
[377879745,1754592644672,-460.0,0.00023013,2]
[377879746,1754592644681,-5447.31,0.00023013,2]
[377879747,1754592644691,-460.0,0.00023013,2]
[377879748,1754592644700,-460.0,0.00023013,2]
[377879749,1754592644710,-481.05,0.00023013,2]
[377879750,1754592644720,-460.0,0.00023013,2]
[377879751,1754592644730,-2672.21,0.00023013,2]
[377879752,1754592644739,-460.0,0.00023013,2]
[377879753,1754592644749,-1766.08,0.00023013,2]
[377879754,1754592644759,-626.17,0.00023013,2]
[377879755,1754592644769,-460.0,0.00023013,2]
[377879756,1754592644779,-645.61,0.00023013,2]
[377879757,1754592644789,-1285.94,0.00023013,2]
[377879758,1754592644799,-460.0,0.00023013,2]
[377879759,1754592644808,-460.0,0.00023013,2]
[377879760,1754592644818,-460.0,0.00023013,2]
[377879761,1754592644828,-460.0,0.00023013,2]
[377879762,1754592644838,-460.0,0.00023013,2]
[377879763,1754592644848,-630.52,0.00023013,2]
[377879764,1754592644857,-578.98,0.00023013,2]
[377879765,1754592644867,-460.0,0.00023013,2]
[377879766,1754592644877,-1193.89,0.00023013,2]
[377879767,1754592644887,-544.89,0.00023013,2]
[377879768,1754592644897,-910.64,0.00023013,2]
[377879769,1754592644906,-460.0,0.00023013,2]
[377879770,1754592644916,-732.08,0.00023013,2]
[377879771,1754592644926,-973.45,0.00023013,2]
[377879772,1754592644935,-2197.76,0.00023013,2]
[377879773,1754592644945,-1000.0,0.00023068,2]
[377879774,1754592644955,-1500.0,0.00023068,2]
[377879775,1754592644964,-1000.0,0.00023121,2]
[377879776,1754592644974,-307.77,0.00023252,2]
[377879777,1754592644985,-598.89028677,0.00023287,2]
[377879778,1754592644995,-460.0,0.00023287,2]
[377879779,1754592645005,-460.0,0.00023287,2]
[377879780,1754592645015,-903.9,0.00023287,2]
[377879781,1754592645025,-460.0,0.00023287,2]
[377879782,1754592645034,-903.73,0.00023287,2]
[377879783,1754592645044,-460.0,0.00023287,2]
[377879784,1754592645054,-725.42,0.00023287,2]
[377879785,1754592645068,-460.0,0.00023287,2]
[377879786,1754592645077,-792.52,0.00023287,2]
[377879787,1754592645087,-460.0,0.00023287,2]
[377879788,1754592645099,-581.4,0.00023287,2]
[377879789,1754592645110,-460.0,0.00023287,2]
[377879790,1754592645120,-199.1,0.00023287,2]
[377879791,1754592645130,-570.6,0.00023287,2]
[377879792,1754592645139,-460.0,0.00023287,2]
[377879793,1754592645149,-460.0,0.00023287,2]
[377879794,1754592645159,-460.0,0.00023287,2]
[377879795,1754592645170,-460.0,0.00023287,2]
[377879796,1754592645179,-1834.74,0.00023287,2]
[377879797,1754592645189,-825.21,0.00023287,2]
[377879798,1754592645199,-619.62,0.00023287,2]
[377879799,1754592645208,-476.77,0.00023287,2]
[377879800,1754592645218,-1121.19,0.00023287,2]
[377879801,1754592645229,-460.0,0.00023287,2]
[377879802,1754592645239,-460.0,0.00023287,2]
[377879803,1754592645249,-1388.37,0.00023287,2]
[377879804,1754592645258,-158.36,0.00023287,2]
[377879805,1754592645268,-460.0,0.00023287,2]
[377879806,1754592645277,-460.0,0.00023287,2]
[377879807,1754592645287,-460.0,0.00023287,2]
[377879808,1754592645297,-460.0,0.00023287,2]
[377879809,1754592645307,-460.0,0.00023287,2]
[377879810,1754592645318,-460.0,0.00023287,2]
[377879811,1754592645328,-1509.44,0.00023287,2]
[377879812,1754592645338,-1012.9,0.00023287,2]
[377879813,1754592645350,-460.0,0.00023287,2]
[377879814,1754592645359,-807.23,0.00023287,2]
[377879815,1754592645369,-585.04,0.00023287,2]
[377879816,1754592645379,-1094.48,0.00023287,2]
[377879817,1754592645389,-293.48174156,0.00023287,2]
[377879818,1754592645399,-460.0,0.00023287,2]
[377879819,1754592645410,-1395.48,0.00023287,2]
[377879820,1754592645420,-498.01,0.00023287,2]
[377879821,1754592645429,-625.27,0.00023287,2]
[377879822,1754592645438,-460.0,0.00023287,2]
[377879823,1754592645448,-460.0,0.00023287,2]
[377879824,1754592645457,-1935.5,0.00023287,2]
[377879825,1754592645466,-1710.3,0.00023287,2]
[377879826,1754592645476,-460.0,0.00023287,2]
[377879827,1754592645486,-460.0,0.00023287,2]
[377879828,1754592645496,-502.64,0.00023287,2]
[377879829,1754592645506,-460.0,0.00023287,2]
[377879830,1754592645517,-460.0,0.00023287,2]
[377879831,1754592645528,-5447.31,0.00023287,2]
[377879832,1754592645537,-481.05,0.00023287,2]
[377879833,1754592645547,-460.0,0.00023287,2]
[377879834,1754592645556,-460.0,0.00023287,2]
[377879835,1754592645566,-2672.21,0.00023287,2]
[377879836,1754592645575,-460.0,0.00023287,2]
[377879837,1754592645584,-1766.08,0.00023287,2]
[377879838,1754592645594,-626.17,0.00023287,2]
[377879839,1754592645603,-460.0,0.00023287,2]
[377879840,1754592645615,-645.61,0.00023287,2]
[377879841,1754592645625,-1285.94,0.00023287,2]
[377879842,1754592645635,-460.0,0.00023287,2]
[377879843,1754592645645,-460.0,0.00023287,2]
[377879844,1754592645656,-460.0,0.00023287,2]
[377879845,1754592645666,-460.0,0.00023287,2]
[377879846,1754592645676,-460.0,0.00023287,2]
[377879847,1754592645685,-630.52,0.00023287,2]
[377879848,1754592645695,-578.98,0.00023287,2]
[377879849,1754592645705,-460.0,0.00023287,2]
[377879851,1754592645715,-1193.89,0.00023287,2]
[377879852,1754592645724,-544.89,0.00023287,2]
[377879854,1754592645735,-910.64,0.00023287,2]
[377879856,1754592645745,-460.0,0.00023287,2]
[377879859,1754592645755,-732.08,0.00023287,2]
[377879860,1754592645765,-973.45,0.00023287,2]
[377879861,1754592645775,-2197.76,0.00023287,2]
[377879862,1754592645784,-1000.0,0.00023321,2]
[377879863,1754592645794,-656.71975641,0.00023321,2]
[377879865,1754592645803,-1000.0,0.00023321,2]
[377879866,1754592645814,-5000.0,0.00023329,2]
[377879868,1754592645825,-4834.0,0.00023356,2]
[377879871,1754592645835,-600.0,0.00023365,2]
[377879873,1754592645845,-505.41,0.00023365,2]
[377879875,1754592645854,-4834.0,0.00023372,2]
[377879877,1754592645864,-4834.0,0.00023481,2]
[377879879,1754592645874,-4834.0,0.00023543,2]
[377879881,1754592645884,-460.0,0.00023561,2]
[377879883,1754592645893,-460.0,0.00023561,2]
[377879885,1754592645903,-903.9,0.00023561,2]
[377879887,1754592645914,-460.0,0.00023561,2]
[377879888,1754592645924,-903.73,0.00023561,2]
[377879890,1754592645934,-460.0,0.00023561,2]
[377879892,1754592645944,-725.42,0.00023561,2]
[377879894,1754592645954,-460.0,0.00023561,2]
[377879896,1754592645963,-792.52,0.00023561,2]
[377879898,1754592645973,-460.0,0.00023561,2]
[377879900,1754592645983,-581.4,0.00023561,2]
[377879902,1754592645994,-460.0,0.00023561,2]
[377879904,1754592646008,-570.6,0.00023561,2]
[377879906,1754592646020,-460.0,0.00023561,2]
[377879907,1754592646031,-460.0,0.00023561,2]
[377879909,1754592646041,-328.0440907,0.00023561,2]
[377879911,1754592646052,-460.0,0.00023561,2]
[377879912,1754592646065,-1834.74,0.00023561,2]
[377879913,1754592646075,-825.21,0.00023561,2]
[377879914,1754592646086,-619.62,0.00023561,2]
[377879915,1754592646095,-476.77,0.00023561,2]
[377879916,1754592646105,-1121.19,0.00023561,2]
[377879917,1754592646115,-460.0,0.00023561,2]
[377879918,1754592646125,-460.0,0.00023561,2]
[377879919,1754592646135,-1388.37,0.00023561,2]
[377879920,1754592646145,-460.0,0.00023561,2]
[377879921,1754592646156,-460.0,0.00023561,2]
[377879922,1754592646165,-287.56,0.00023561,2]
[377879923,1754592646175,-229.31,0.00023561,2]
[377879924,1754592646186,-460.0,0.00023561,2]
[377879925,1754592646195,-551.184994,0.00023561,2]
[377879926,1754592646205,-1509.44,0.00023561,2]
[377879927,1754592646215,-1012.9,0.00023561,2]
[377879928,1754592646226,-460.0,0.00023561,2]
[377879929,1754592646237,-807.23,0.00023561,2]
[377879930,1754592646247,-585.04,0.00023561,2]
[377879931,1754592646258,-1094.48,0.00023561,2]
[377879932,1754592646267,-460.0,0.00023561,2]
[377879933,1754592646277,-1395.48,0.00023561,2]
[377879934,1754592646287,-498.01,0.00023561,2]
[377879935,1754592646297,-625.27,0.00023561,2]
[377879936,1754592646307,-460.0,0.00023561,2]
[377879937,1754592646317,-460.0,0.00023561,2]
[377879938,1754592646330,-1935.5,0.00023561,2]
[377879939,1754592646341,-1710.3,0.00023561,2]
[377879940,1754592646351,-460.0,0.00023561,2]
[377879941,1754592646361,-460.0,0.00023561,2]
[377879942,1754592646370,-502.64,0.00023561,2]
[377879943,1754592646381,-460.0,0.00023561,2]
[377879944,1754592646391,-460.0,0.00023561,2]
[377879945,1754592646432,-5447.31,0.00023561,2]
[377879946,1754592646442,-481.05,0.00023561,2]
[377879947,1754592646452,-460.0,0.00023561,2]
[377879948,1754592646461,-460.0,0.00023561,2]
[377879949,1754592646471,-2672.21,0.00023561,2]
[377879950,1754592646482,-460.0,0.00023561,2]
[377879951,1754592646492,-1766.08,0.00023561,2]
[377879952,1754592646502,-626.17,0.00023561,2]
[377879953,1754592646512,-460.0,0.00023561,2]
[377879954,1754592646521,-645.61,0.00023561,2]
[377879955,1754592646531,-1285.94,0.00023561,2]
[377879956,1754592646540,-460.0,0.00023561,2]
[377879957,1754592646549,-460.0,0.00023561,2]
[377879958,1754592646558,-460.0,0.00023561,2]
[377879959,1754592646568,-460.0,0.00023561,2]
[377879960,1754592646577,-460.0,0.00023561,2]
[377879961,1754592646587,-630.52,0.00023561,2]
[377879962,1754592646596,-578.98,0.00023561,2]
[377879963,1754592646607,-460.0,0.00023561,2]
[377879964,1754592646617,-1193.89,0.00023561,2]
[377879965,1754592646628,-544.89,0.00023561,2]
[377879966,1754592646640,-910.64,0.00023561,2]
[377879967,1754592646650,-460.0,0.00023561,2]
[377879968,1754592646660,-732.08,0.00023561,2]
[377879969,1754592646670,-973.45,0.00023561,2]
[377879970,1754592646679,-2197.76,0.00023561,2]
[377879971,1754592646689,-4834.0,0.00023563,2]
[377879972,1754592646698,-2000.0,0.00023616,2]
[377879973,1754592646707,-1500.0,0.00023669,2]
[377879974,1754592646717,-1138.0,0.00023816,2]
[377879975,1754592646726,-460.0,0.00023835,2]
[377879976,1754592646739,-460.0,0.00023835,2]
[377879977,1754592646749,-903.9,0.00023835,2]
[377879978,1754592646759,-460.0,0.00023835,2]
[377879979,1754592646769,-903.73,0.00023835,2]
[377879980,1754592646778,-460.0,0.00023835,2]
[377879981,1754592646788,-725.42,0.00023835,2]
[377879982,1754592646798,-460.0,0.00023835,2]
[377879983,1754592646807,-792.52,0.00023835,2]
[377879984,1754592646816,-460.0,0.00023835,2]
[377879985,1754592646826,-581.4,0.00023835,2]
[377879986,1754592646836,-460.0,0.00023835,2]
[377879987,1754592646846,-570.6,0.00023835,2]
[377879988,1754592646855,-460.0,0.00023835,2]
[377879989,1754592646865,-460.0,0.00023835,2]
[377879990,1754592646875,-460.0,0.00023835,2]
[377879991,1754592646884,-1834.74,0.00023835,2]
[377879992,1754592646896,-825.21,0.00023835,2]
[377879993,1754592646912,-619.62,0.00023835,2]
[377879994,1754592646922,-476.77,0.00023835,2]
[377879995,1754592646937,-1121.19,0.00023835,2]
[377879996,1754592646947,-460.0,0.00023835,2]
[377879997,1754592646956,-460.0,0.00023835,2]
[377879998,1754592646966,-1388.37,0.00023835,2]
[377879999,1754592646975,-460.0,0.00023835,2]
[377880000,1754592646985,-460.0,0.00023835,2]
[377880001,1754592646995,-455.22863894,0.00023835,2]
[377880002,1754592647005,-1509.44,0.00023835,2]
[377880003,1754592647015,-1012.9,0.00023835,2]
[377880004,1754592647024,-460.0,0.00023835,2]
[377880005,1754592647034,-807.23,0.00023835,2]
[377880006,1754592647043,-585.04,0.00023835,2]
[377880007,1754592647053,-1094.48,0.00023835,2]
[377880008,1754592647064,-460.0,0.00023835,2]
[377880009,1754592647075,-1395.48,0.00023835,2]
[377880010,1754592647085,-498.01,0.00023835,2]
[377880011,1754592647094,-625.27,0.00023835,2]
[377880012,1754592647104,-460.0,0.00023835,2]
[377880013,1754592647116,-460.0,0.00023835,2]
[377880014,1754592647126,-1935.5,0.00023835,2]
[377880015,1754592647136,-1710.3,0.00023835,2]
[377880016,1754592647146,-460.0,0.00023835,2]
[377880017,1754592647155,-460.0,0.00023835,2]
[377880018,1754592647166,-502.64,0.00023835,2]
[377880019,1754592647176,-460.0,0.00023835,2]
[377880020,1754592647185,-460.0,0.00023835,2]
[377880021,1754592647194,-5447.31,0.00023835,2]
[377880022,1754592647205,-481.05,0.00023835,2]
[377880023,1754592647214,-460.0,0.00023835,2]
[377880024,1754592647224,-460.0,0.00023835,2]
[377880025,1754592647234,-2672.21,0.00023835,2]
[377880026,1754592647245,-575.03,0.00023835,2]
[377880027,1754592647254,-1766.08,0.00023835,2]
[377880028,1754592647264,-626.17,0.00023835,2]
[377880029,1754592647273,-460.0,0.00023835,2]
[377880030,1754592647283,-645.61,0.00023835,2]
[377880031,1754592647292,-460.0,0.00023835,2]
[377880032,1754592647302,-1285.94,0.00023835,2]
[377880033,1754592647311,-460.0,0.00023835,2]
[377880034,1754592647320,-460.0,0.00023835,2]
[377880035,1754592647330,-460.0,0.00023835,2]
[377880036,1754592647339,-460.0,0.00023835,2]
[377880037,1754592647350,-630.52,0.00023835,2]
[377880038,1754592647360,-578.98,0.00023835,2]
[377880039,1754592647370,-460.0,0.00023835,2]
[377880040,1754592647379,-1193.89,0.00023835,2]
[377880041,1754592647389,-544.89,0.00023835,2]
[377880042,1754592647399,-910.64,0.00023835,2]
[377880043,1754592647410,-265.25080956,0.00023835,2]
[377880044,1754592647419,-732.08,0.00023835,2]
[377880045,1754592647429,-973.45,0.00023835,2]
[377880046,1754592647439,-2197.76,0.00023835,2]
[377880047,1754592647448,-1500.0,0.00023868,2]
[377880048,1754592647457,-1500.0,0.00023868,2]
[377880049,1754592647466,-151.0,0.00023896,2]
[377880050,1754592647475,-1680.0,0.00023927,2]
[377880051,1754592647484,-524.144,0.00024009,5]
[377880052,1754592647493,-538.83996694,0.00024075,2]
[377880053,1754592647502,-442.74834413,0.00024109,2]
[377880054,1754592647512,-460.0,0.00024109,2]